Cogmind - Beta 14 @@@ ROGUE MODE // 2024.12.05 @ 21:44:14 Player: Shimmyarah Result: Destroyed by M Guard with Hellfire Missile Launcher Performance ------------- Evolutions (9) 4500 Regions Visited (12) 2400 Robots Destroyed (24) 120 Value Destroyed (553) 553 Prototype IDs (8) 160 Alien Tech Used (0) 0 Bonus (761) 761 TOTAL SCORE: 8494 Bonus ------- High Alert Combat Kills 20 Entered DSFs 500 Registered with UFD 300 Friendly Fire -59 Cogmind --------- Core Integrity 0/1600 Matter 77/300 Energy 21/100 System Corruption 13% Temperature Cool (9) Movement Core (50) Location -1/Command Parts ------- > --- POWER (2) -------- (None) > --- PROPULSION (12) -- (None) > --- UTILITY (9) ------ Spectral Analyzer Improved Launcher Guidance Computer Improved Launcher Guidance Computer Improved Launcher Guidance Computer Advanced Hacking Suite System Shield Improved System Shield > --- WEAPON (2) ------- (None) > --- INVENTORY (5) ---- Fusion Compressor Advanced ECM Suite Advanced Shield Generator Micro-nuke Launcher Great Axe Peak State ------------ > --- POWER ------------ Particle Reactor Light Quantum Reactor > --- PROPULSION ------- Biometal Medium Treads Field Propulsion Drive Field Propulsion Drive Field Propulsion Drive Field Propulsion Drive Field Propulsion Drive Field Propulsion Drive Q-thruster Q-thruster Impulse Thruster Array > --- UTILITY ---------- Spectral Analyzer Improved Launcher Guidance Computer Improved Launcher Guidance Computer Improved Launcher Guidance Computer Improved Launcher Guidance Computer Core Analyzer Improved Cloaking Device Advanced Hacking Suite > --- WEAPON ----------- Micro-nuke Launcher Great Axe > --- INVENTORY -------- Myomer Leg Advanced Shield Generator System Shield Micro-nuke Launcher [Rating: 156] Favorites ----------- Power Subdweller Power Source Engine Subdweller Power Source Power Core Fusion Compressor Reactor Light Quantum Reactor Propulsion Light Treads Treads Light Treads Leg Myomer Leg Hover Unit Cooled Gravmag System Flight Unit Field Propulsion Drive Utility Small Storage Unit Device Seismic Detector Storage Small Storage Unit Processor Improved Launcher Guidance Computer Hackware Advanced Hacking Suite Weapon Subdweller Beam Cannon Energy Gun Small Laser Energy Cannon Subdweller Beam Cannon Ballistic Gun Subdweller Machine Gun Ballistic Cannon Light Cannon Launcher Micro-nuke Launcher Special Weapon Mining Laser Slashing Weapon Great Axe Build | -11 -10 -10 -9 -9 -6 -6 -5 -4 -3 -2 -1 -1 ------- Run | Yrd Mat Sub Rec Scr Fac DSF Fac Fac Res Res Acc Com Slots Evolved 18 | . . . . . 8 . 2 2 2 2 2 . Power 1 | . . . . . 1 . . . . . . . Propulsion 10 | . . . . . 4 . 1 1 2 1 1 . Utility 7 | . . . . . 3 . 1 1 . 1 1 . Weapon . | . . . . . . . . . . . . . Parts Attached 86 | 2 8 13 . 7 . 4 8 2 20 8 10 4 Power 9 | . . 2 . 1 . . 1 1 3 1 . . Engine 4 | . . 2 . 1 . . . . 1 . . . Core 2 | . . . . . . . 1 1 . . . . Reactor 3 | . . . . . . . . . 2 1 . . Propulsion 33 | . 5 1 . 2 . 4 2 . 9 5 5 . Treads 10 | . 2 1 . . . 4 . . 1 . 2 . Leg 6 | . . . . 2 . . . . 1 1 2 . Wheel . | . . . . . . . . . . . . . Hover 1 | . . . . . . . 1 . . . . . Flight 16 | . 3 . . . . . 1 . 7 4 1 . Utility 25 | 1 1 3 . 2 . . 4 . 7 1 3 3 Device 12 | 1 1 3 . . . . 2 . . 1 2 2 Storage 1 | . . . . 1 . . . . . . . . Processor 7 | . . . . 1 . . . . 6 . . . Hackware 5 | . . . . . . . 2 . 1 . 1 1 Protection . | . . . . . . . . . . . . . Artifact . | . . . . . . . . . . . . . Weapon 19 | 1 2 7 . 2 . . 1 1 1 1 2 1 Energy Gun 1 | 1 . . . . . . . . . . . . Energy Cannon 1 | . . 1 . . . . . . . . . . Ballistic Gun 5 | . . 4 . 1 . . . . . . . . Ballistic Cannon 3 | . 1 1 . 1 . . . . . . . . Launcher 4 | . . . . . . . . . . 1 2 1 Special Weapon 2 | . 1 1 . . . . . . . . . . Impact Weapon . | . . . . . . . . . . . . . Slashing Weapon 3 | . . . . . . . 1 1 1 . . . Piercing Weapon . | . . . . . . . . . . . . . Special Melee Weapon . | . . . . . . . . . . . . . Unidentified Prototypes 4 | . . . . . . . 2 1 1 . . . Parts Lost 41 | . . 3 . . . 5 9 1 . 7 14 2 Power 4 | . . 1 . . . 1 . . . 1 1 . Propulsion 24 | . . 1 . . . 2 5 . . 4 12 . Utility 9 | . . . . . . . 4 1 . 1 1 2 Weapon 4 | . . 1 . . . 2 . . . 1 . . Highest Loss Streak 13 | . . 1 . . . 3 6 1 . 6 13 2 To Critical Strikes 2 | . . 1 . . . . . . . . 1 . Average Slot Usage (%) 80 | . 99 99 100 67 . 31 39 3 47 89 69 33 Engine 10 | . 14 14 14 10 . . . . . 1 . . Treads 18 | . 6 27 28 16 . 5 13 . 4 4 3 . Leg 1 | . 9 . . 2 . 4 . . 3 3 4 . Flight 3 | . 11 . . . . . . . 8 33 20 . Device 9 | . 14 14 14 8 . . 3 . . 3 6 . Storage 10 | . 14 14 14 9 . 6 3 . . . . . Processor 4 | . . . . 2 . 6 4 . 21 26 24 21 Energy Cannon 6 | . . 7 14 7 . . . . . . . . Ballistic Gun 7 | . 6 7 14 9 . 3 . . . . . . Ballistic Cannon 4 | . 3 9 . 1 . 3 . . . . . . Special Weapon 1 | . 7 2 . . . . . . . . . . Peak Build Rating 156 | 8 9 13 11 20 20 20 38 12 126 156 151 58 Average Rating 22 | 6 8 10 11 8 20 14 23 4 73 143 116 49 On Entrance 30 | 6 8 9 11 11 20 20 17 5 2 126 114 48 Naked Turns 836 | . . . . 765 . . . 66 5 . . . Heaviest Build 49 | 12 13 23 23 23 20 20 13 14 29 49 25 . Greatest Support 88 | 20 40 40 40 40 35 88 3 3 58 73 59 3 Greatest Overweight (x) 4 | . 3 . . 3 . 3 4 4 1 . 3 . Average Overweight (x) . | . . . . . . . . . . . . . Largest Inventory Capacity 8 | 8 8 8 8 8 8 8 8 5 5 5 5 5 Average Capacity 7 | 8 8 8 8 7 8 8 6 5 5 5 5 5 Most Carried 8 | 8 8 8 7 8 8 8 8 5 5 5 5 5 Average Carried 6 | 6 7 7 7 5 8 7 4 4 4 4 4 4 Final Capacity 8 | 8 8 8 8 8 8 8 5 5 5 5 5 5 Final Carried 8 | 8 8 7 7 8 8 7 4 4 5 5 5 5 Class Distribution -------------------- 65% | Mutant 30% | Scavenger-Mutant 4% | Hacker-Mutant Dominant Class ---------------- Mutant | -10/Materials Mutant | -10/Subcaves Scavenger-Mutant | -9/Recycling Scavenger-Mutant | -9/Scraptown Scavenger-Mutant | -6/Factory Mutant | -6/DSF Hacker-Mutant | -5/Factory Mutant | -4/Factory Mutant | -3/Research Mutant | -2/Research Mutant | -1/Access Hacker-Mutant | -1/Command Resources | -11 -10 -10 -9 -9 -6 -6 -5 -4 -3 -2 -1 -1 ----------- Run | Yrd Mat Sub Rec Scr Fac DSF Fac Fac Res Res Acc Com Matter Collected 1039 | 232 113 351 . . . . . . 246 . 97 . Remotely . | . . . . . . . . . . . . . Salvage Created 756 | 112 122 299 . . . . . . 191 . 32 . Parts 59 | 8 18 17 . . . . . . 6 2 8 . Haulers Intercepted 1 | . 1 . . . . . . . . . . . Recyclers Shooed . | . . . . . . . . . . . . . Parts Field Recycled . | . . . . . . . . . . . . . Retrieved Matter . | . . . . . . . . . . . . . Parts Self-Destructed 14 | . . 14 . . . . . . . . . . Prevented . | . . . . . . . . . . . . . Kills | -11 -10 -10 -9 -9 -6 -6 -5 -4 -3 -2 -1 -1 ------- Run | Yrd Mat Sub Rec Scr Fac DSF Fac Fac Res Res Acc Com Combat Hostiles Destroyed 15 | . 3 10 . . . . . . 1 . 1 . Melee 1 | . . . . . . . . . 1 . . . Guns 6 | . 3 3 . . . . . . . . . . Cannons 7 | . . 7 . . . . . . . . . . AOE 1 | . . . . . . . . . . . 1 . Classes Destroyed 12 | 2 4 4 . . . . . . . 1 1 . Worker 1 | . . . . . . . . . . 1 . . Builder 2 | . 1 . . . . . . . . . 1 . Tunneler 1 | 1 . . . . . . . . . . . . Hauler 1 | . 1 . . . . . . . . . . . Recycler 2 | 1 . . . . . . . . 1 . . . Turret 1 | . . 1 . . . . . . . . . . Watcher 1 | . 1 . . . . . . . . . . . Swarmer 7 | . 3 4 . . . . . . . . . . Grunt 1 | . . 1 . . . . . . . . . . Sentry 2 | . . 1 . . . . . . 1 . . . Programmer 1 | . . . . . . . . . . . 1 . Subdweller 4 | . . 4 . . . . . . . . . . Best Kill Streak 6 | 1 4 6 . . . . . . 2 1 1 . Combat Bots Only 5 | . 3 5 . . . . . . 1 . 1 . Max Kills in Single Turn 2 | 1 2 1 . . . . . . 1 1 1 . Gunslinging . | . . . . . . . . . . . . . Exploded 1 | . . . . . . . . . . . 1 . Melee 1 | . . . . . . . . . 1 . . . Uniques/NPCs Destroyed . | . . . . . . . . . . . . . Combat | -11 -10 -10 -9 -9 -6 -6 -5 -4 -3 -2 -1 -1 -------- Run | Yrd Mat Sub Rec Scr Fac DSF Fac Fac Res Res Acc Com Hostile Shots Fired 731 | . 22 99 . . . 65 108 97 12 102 162 64 Missed 287 | . 5 33 . . . 22 35 41 5 62 60 24 Damage Taken 8876 | . 133 830 . . . 1070 1435 1006 189 900 2139 1174 Core 3982 | . 31 81 . . . 280 745 1003 28 151 497 1166 Absorbed by Shields 120 | . . . . . . . . . . . 120 . Core Remaining (%) 63 | 100 . . . 55 . 67 25 12 97 89 . . Volleys Fired 92 | 4 23 58 . . . . . . . 4 3 . Largest 2 | 2 2 2 . . . . . . . 1 1 . Hottest 110 | 60 100 110 . . . . . . . 49 49 . Shots Fired 140 | 8 34 91 . . . . . . . 4 3 . Gun 56 | 8 22 26 . . . . . . . . . . Cannon 63 | . . 63 . . . . . . . . . . Launcher 7 | . . . . . . . . . . 4 3 . Special 14 | . 12 2 . . . . . . . . . . Kinetic 79 | 4 11 64 . . . . . . . . . . Thermal 53 | 3 23 27 . . . . . . . . . . Explosive 7 | . . . . . . . . . . 4 3 . Electromagnetic 1 | 1 . . . . . . . . . . . . Robot Hit Streak 7 | 2 3 7 . . . . . . . 2 3 . Robot Miss Streak 4 | 2 4 4 . . . . . . . 2 . . Penetration Max . | . . . . . . . . . . . . . Secondary Targets . | . . . . . . . . . . . . . Shots Hit Robots 68 | 3 9 49 . . . . . . 3 2 2 . Core Hits 41 | 2 6 18 . . . . 1 5 3 1 5 . Critical Kills 1 | . . 1 . . . . . . . . . . Critical Parts Destroyed . | . . . . . . . . . . . . . Critical Strikes 2 | . . 1 . . . . . . 1 . . . Destroy 1 | . . 1 . . . . . . . . . . Sever 1 | . . . . . . . . . 1 . . . Melee Attacks 20 | . . . . . . . 1 1 4 6 8 . Impact . | . . . . . . . . . . . . . Slashing 20 | . . . . . . . 1 1 4 6 8 . Piercing . | . . . . . . . . . . . . . Sneak Attacks 1 | . . . . . . . . . 1 . . . Combat Hostiles . | . . . . . . . . . . . . . Follow-up Attacks . | . . . . . . . . . . . . . Damage Inflicted 1926 | 41 131 989 12 . . . 15 78 171 91 398 . Guns 429 | 41 103 285 . . . . . . . . . . Cannons 704 | . . 704 . . . . . . . . . . Explosions 489 | . . . . . . . . . . 91 398 . Melee 171 | . . . . . . . . . 171 . . . Ramming 109 | . 4 . 12 . . . 15 78 . . . . Kinetic 819 | 29 25 765 . . . . . . . . . . Thermal 338 | 12 102 224 . . . . . . . . . . Explosive 489 | . . . . . . . . . . 91 398 . Electromagnetic . | . . . . . . . . . . . . . Impact . | . . . . . . . . . . . . . Slashing 171 | . . . . . . . . . 171 . . . Piercing . | . . . . . . . . . . . . . Highest Corruption 12 | . . . . . . . 1 9 . 2 10 12 Average Corruption 7 | . . . . . . . 1 7 . 2 7 11 Corruption Purged . | . . . . . . . . . . . . . Corruption Blocked . | . . . . . . . . . . . . . Effects 14 | . . . . . . . . 4 . . 6 4 Message Errors 2 | . . . . . . . . . . . 1 1 Matter Fused 3 | . . . . . . . . 2 . . 1 . Heat Flow Errors 1 | . . . . . . . . 1 . . . . Energy Discharges 6 | . . . . . . . . 1 . . 3 2 Data Loss (minor) 1 | . . . . . . . . . . . . 1 Misdirections 1 | . . . . . . . . . . . 1 . Overload Shots . | . . . . . . . . . . . . . Overflow Damage 4 | . . 1 . . . . . . . . 3 . Projectiles 1 | . . 1 . . . . . . . . . . Explosions 3 | . . . . . . . . . . . 3 . Melee . | . . . . . . . . . . . . . Knockbacks 4 | . . 4 . . . . . . . . . . Impact . | . . . . . . . . . . . . . Kinetic 4 | . . 4 . . . . . . . . . . Secondary . | . . . . . . . . . . . . . Self-Inflicted Damage 99 | . 2 . . . . . 7 33 . 57 . . Shots 1 | . . . . . . . . . . 1 . . Rammed 29 | . 1 . 3 . . . 2 23 . . . . Targets Rammed 29 | . 1 . 3 . . . 2 23 . . . . Kicked . | . . . . . . . . . . . . . Crushed . | . . . . . . . . . . . . . Highest Temperature 417 | . 164 21 . . . . 6 203 7 417 . . Average Temperature 151 | . 72 9 . . . . 6 105 3 196 . . Received Heat Transfer 838 | . . 258 . . . 45 319 45 36 117 . 18 Effects 8 | . . . . . . . . . . 8 . . Shutdowns 2 | . . . . . . . . . . 2 . . Interference 4 | . . . . . . . . . . 4 . . Matter Decay 2 | . . . . . . . . . . 2 . . Siege Activations . | . . . . . . . . . . . . . Robots Corrupted . | . . . . . . . . . . . . . Combat Hostiles . | . . . . . . . . . . . . . Parts Fried . | . . . . . . . . . . . . . Impact Corruptions . | . . . . . . . . . . . . . Robots Melted . | . . . . . . . . . . . . . Combat Hostiles . | . . . . . . . . . . . . . Parts Melted 1 | . . 1 . . . . . . . . . . Heat Transferred 546 | 25 225 296 . . . . . . . . . . Parts Sabotaged . | . . . . . . . . . . . . . Parts Stolen . | . . . . . . . . . . . . . Parts Stripped . | . . . . . . . . . . . . . Power Chain Reactions . | . . . . . . . . . . . . . Alert | -11 -10 -10 -9 -9 -6 -6 -5 -4 -3 -2 -1 -1 ------- Run | Yrd Mat Sub Rec Scr Fac DSF Fac Fac Res Res Acc Com Peak Influence 656 | 10 96 . 96 . . 20 152 214 229 656 635 411 Initial 396 | . 6 . 74 . . . 7 74 111 128 363 396 Average 151 | 7 65 . 47 . . 10 16 102 144 253 477 396 Maximum Alert Level 2 | . . . . . . . . 1 1 2 2 2 Low Security (%) 77 | 100 100 . 100 . 100 100 100 95 94 54 . . Level 1 8 | . . . . . . . . 4 5 29 10 87 Level 2 13 | . . . . . . . . . . 15 89 12 Level 3 . | . . . . . . . . . . . . . Level 4 . | . . . . . . . . . . . . . Level 5 . | . . . . . . . . . . . . . High Security . | . . . . . . . . . . . . . Max Security . | . . . . . . . . . . . . . Squads Dispatched 8 | . . . . . . 1 2 . 2 1 2 . Investigation 2 | . . . . . . . . . 1 . 1 . Extermination 1 | . . . . . . . . . 1 . . . Reinforcement 5 | . . . . . . 1 2 . . 1 1 . Assault . | . . . . . . . . . . . . . Garrison . | . . . . . . . . . . . . . Intercept . | . . . . . . . . . . . . . Searches Triggered 1 | . . . . . . . . . . . 1 . Construction Impeded 1 | . . . . . . . . . . . 1 . Haulers Reinforced 1 | . . . . . . . 1 . . . . . Active Scanning Responses . | . . . . . . . . . . . . . Cargo Convoy Interrupts . | . . . . . . . . . . . . . Stealth | -11 -10 -10 -9 -9 -6 -6 -5 -4 -3 -2 -1 -1 --------- Run | Yrd Mat Sub Rec Scr Fac DSF Fac Fac Res Res Acc Com Distress Signals 4 | . . . . . . . 2 . . 1 1 . Communications Jammed . | . . . . . . . . . . . . . Distress Signals . | . . . . . . . . . . . . . Times Spotted 130 | . 4 24 . . . 6 16 20 2 26 25 7 Peak Tracking Total 13 | . 3 6 . . . 5 10 13 3 10 11 7 Tactical Retreats 22 | . . 2 . . . 3 2 3 . 6 6 . Traps | -11 -10 -10 -9 -9 -6 -6 -5 -4 -3 -2 -1 -1 ------- Run | Yrd Mat Sub Rec Scr Fac DSF Fac Fac Res Res Acc Com Traps Triggered 3 | . . 2 . . . . . . . 1 . . Indirectly . | . . . . . . . . . . . . . Trap Hack Attempts . | . . . . . . . . . . . . . Triggered . | . . . . . . . . . . . . . Disarmed . | . . . . . . . . . . . . . Reprogrammed . | . . . . . . . . . . . . . Reused . | . . . . . . . . . . . . . Traps Extracted . | . . . . . . . . . . . . . Installed . | . . . . . . . . . . . . . Triggered . | . . . . . . . . . . . . . Machines | -11 -10 -10 -9 -9 -6 -6 -5 -4 -3 -2 -1 -1 ---------- Run | Yrd Mat Sub Rec Scr Fac DSF Fac Fac Res Res Acc Com Machines Disabled 2 | . . 1 . . . . . . . . 1 . Max in Single Turn 1 | . . 1 . . . . . . . . 1 . Machines Repaired . | . . . . . . . . . . . . . Machines Dismantled . | . . . . . . . . . . . . . Machines Sabotaged . | . . . . . . . . . . . . . Overloaded Fab Kills . | . . . . . . . . . . . . . Hacking | -11 -10 -10 -9 -9 -6 -6 -5 -4 -3 -2 -1 -1 --------- Run | Yrd Mat Sub Rec Scr Fac DSF Fac Fac Res Res Acc Com Machines Accessed 21 | . . 2 3 6 1 . . . 3 2 4 . Terminals 11 | . . . 3 . 1 . . . 3 . 4 . Fabricators . | . . . . . . . . . . . . . Repair Stations 1 | . . . . . . . . . . 1 . . Recycling Units . | . . . . . . . . . . . . . Scanalyzers . | . . . . . . . . . . . . . Garrison Access 1 | . . . . . . . . . . 1 . . Total Hacks 73 | . . 3 7 46 1 . . . 6 3 7 . Successful 59 | . . 3 3 46 1 . . . 2 1 3 . Failed 14 | . . . 4 . . . . . 4 2 4 . Catastrophic 2 | . . . . . . . . . 1 . 1 . Database Lockouts . | . . . . . . . . . . . . . Manual . | . . . . . . . . . . . . . Terminals 21 | . . . 7 . 1 . . . 6 . 7 . Fabricators . | . . . . . . . . . . . . . Repair Stations 1 | . . . . . . . . . . 1 . . Recycling Units . | . . . . . . . . . . . . . Scanalyzers . | . . . . . . . . . . . . . Garrison Access 2 | . . . . . . . . . . 2 . . Terminal Hacks 58 | . . 3 3 46 1 . . . 2 . 3 . Record 49 | . . 1 . 46 . . . . 2 . . . Part Schematic 1 | . . . 1 . . . . . . . . . Robot Analysis 1 | . . . 1 . . . . . . . . . Prototype ID Bank 1 | . . . 1 . . . . . . . . . Open Door 4 | . . 1 . . . . . . . . 3 . Open DSF 1 | . . . . . 1 . . . . . . . Release Object 1 | . . 1 . . . . . . . . . . Fabricator Hacks . | . . . . . . . . . . . . . Repair Station Hacks . | . . . . . . . . . . . . . Recycling Unit Hacks . | . . . . . . . . . . . . . Scanalyzer . | . . . . . . . . . . . . . Garrison Access Hacks 1 | . . . . . . . . . . 1 . . Coupler Status 1 | . . . . . . . . . . 1 . . Unauthorized Hacks . | . . . . . . . . . . . . . Terminals . | . . . . . . . . . . . . . Fabricators . | . . . . . . . . . . . . . Repair Stations . | . . . . . . . . . . . . . Recycling Units . | . . . . . . . . . . . . . Scanalyzers . | . . . . . . . . . . . . . Garrison Access . | . . . . . . . . . . . . . Data Cores Recovered . | . . . . . . . . . . . . . Used . | . . . . . . . . . . . . . Hacking Detections 9 | . . . 3 . . . . . 3 2 1 . Full Trace Events 4 | . . . 2 . . . . . 1 . 1 . Feedback Events . | . . . . . . . . . . . . . Feedback Blocked . | . . . . . . . . . . . . . Robot Schematics Acquired . | . . . . . . . . . . . . . Robots Built . | . . . . . . . . . . . . . Authchips . | . . . . . . . . . . . . . Time . | . . . . . . . . . . . . . Total Robot Build Rating . | . . . . . . . . . . . . . Part Schematics Acquired 1 | . . . 1 . . . . . . . . . Parts Built . | . . . . . . . . . . . . . Authchips . | . . . . . . . . . . . . . Time . | . . . . . . . . . . . . . Total Part Build Rating . | . . . . . . . . . . . . . Parts Repaired . | . . . . . . . . . . . . . Time . | . . . . . . . . . . . . . Parts Recycled . | . . . . . . . . . . . . . Recycled Matter . | . . . . . . . . . . . . . Retrieved Matter . | . . . . . . . . . . . . . Retrieved Components . | . . . . . . . . . . . . . Parts Scanalyzed . | . . . . . . . . . . . . . Part Schematics Acquired . | . . . . . . . . . . . . . Parts Damaged . | . . . . . . . . . . . . . Bothacking | -11 -10 -10 -9 -9 -6 -6 -5 -4 -3 -2 -1 -1 ------------ Run | Yrd Mat Sub Rec Scr Fac DSF Fac Fac Res Res Acc Com Used RIF Installer . | . . . . . . . . . . . . . Robots Hacked . | . . . . . . . . . . . . . Non-combat . | . . . . . . . . . . . . . Combat . | . . . . . . . . . . . . . Robot Hacks Applied . | . . . . . . . . . . . . . Relay Couplers Released . | . . . . . . . . . . . . . Fabnet Peak Effective % . | . . . . . . . . . . . . . Robots Rewired . | . . . . . . . . . . . . . Allies Hacked . | . . . . . . . . . . . . . Hacks Repelled . | . . . . . . . . . . . . . Allies | -11 -10 -10 -9 -9 -6 -6 -5 -4 -3 -2 -1 -1 -------- Run | Yrd Mat Sub Rec Scr Fac DSF Fac Fac Res Res Acc Com Total Allies . | . . . . . . . . . . . . . Largest Group . | . . . . . . . . . . . . . Highest-Rated Group . | . . . . . . . . . . . . . Highest-Rated Ally . | . . . . . . . . . . . . . Total Orders . | . . . . . . . . . . . . . Ally Attacks . | . . . . . . . . . . . . . Total Damage . | . . . . . . . . . . . . . Kills . | . . . . . . . . . . . . . Allies Corrupted . | . . . . . . . . . . . . . Allies Melted . | . . . . . . . . . . . . . Intel | -11 -10 -10 -9 -9 -6 -6 -5 -4 -3 -2 -1 -1 ------- Run | Yrd Mat Sub Rec Scr Fac DSF Fac Fac Res Res Acc Com Robot Analysis Total 1 | . . . 1 . . . . . . . . . Derelict Logs Recovered 5 | . . 1 . 4 . . . . . . . . Drone Launches . | . . . . . . . . . . . . . Drone Recoveries . | . . . . . . . . . . . . . Exploration | -11 -10 -10 -9 -9 -6 -6 -5 -4 -3 -2 -1 -1 ------------- Run | Yrd Mat Sub Rec Scr Fac DSF Fac Fac Res Res Acc Com Turns Passed 9026 | 80 380 3278 679 2782 8 159 284 173 352 364 379 108 Spaces Moved 7578 | 53 202 1511 422 2831 7 125 311 243 468 581 620 204 Core 2992 | . 1 . . 1653 . 38 311 243 346 . 196 204 Treads 2989 | . 49 1511 422 993 . 14 . . . . . . Legs 405 | 53 75 . . 185 7 73 . . . . 12 . Wheels . | . . . . . . . . . . . . . Hover . | . . . . . . . . . . . . . Flight 1192 | . 77 . . . . . . . 122 581 412 . Fastest Speed 35 | 120 117 160 160 50 120 100 50 50 50 40 35 50 Average Speed 102 | 120 129 160 160 97 120 119 84 53 62 52 51 50 Slowest Speed 250 | 120 200 160 160 200 120 200 250 250 100 67 200 50 Overloaded Moves . | . . . . . . . . . . . . . Propulsion Burnouts . | . . . . . . . . . . . . . Robots Hopped 14 | . . . . . . . . . 2 8 4 . Cave-ins Triggered . | . . . . . . . . . . . . . Exploration Rate (%) 34 | 3 28 66 54 90 . 91 14 9 11 21 19 11 Regions Visited 12 Branch Regions 4 Pre-discovered Areas 7 | . . 1 . 6 . . . . . . . . Known Exits Taken 3 | . . . . . 1 . . 1 1 . . . Unknown Exits Taken 8 | 1 1 1 1 1 . . 1 . . 1 1 . Scrap Searched 7 | . . 6 . 1 . . . . . . . . Spaces Dug 14 | . . . . . . . 1 . 1 6 6 . Terrain Destroyed 157 | . . 3 . . . . 1 . 1 83 69 . Melee 14 | . . . . . . . 1 . 1 6 6 . Projectile 3 | . . 3 . . . . . . . . . . AOE 140 | . . . . . . . . . . 77 63 . Terrain Rammed . | . . . . . . . . . . . . . Walls Destroyed . | . . . . . . . . . . . . . Machines Disabled . | . . . . . . . . . . . . . Actions | -11 -10 -10 -9 -9 -6 -6 -5 -4 -3 -2 -1 -1 --------- Run | Yrd Mat Sub Rec Scr Fac DSF Fac Fac Res Res Acc Com Total 8639 | 61 264 2275 424 2859 6 133 331 284 515 615 661 211 Wait 746 | . 15 675 . . . . 2 13 11 15 15 . Move 7538 | 52 201 1510 421 2830 6 124 310 242 463 564 611 204 Hop 14 | . . . . . . . . . 2 8 4 . Pick Up 55 | 3 6 8 . 10 . 2 4 1 11 5 5 . Fast Attach 36 | . 3 3 . 7 . 4 . 1 13 2 2 1 Attach 32 | 1 . 3 . . . . 8 1 7 2 7 3 Detach 7 | . . . . . . . 1 . . . 3 3 Swap 18 | 1 5 7 . . . . . . . 4 1 . Drop 51 | . 10 11 . 12 . 3 3 2 4 5 1 . Fire 92 | 4 23 58 . . . . . . . 4 3 . Melee 20 | . . . . . . . 1 1 4 6 8 . Ram 27 | . 1 . . . . . 2 23 . . 1 . Kick . | . . . . . . . . . . . . . Crush 3 | . . . 3 . . . . . . . . . Escape Stasis . | . . . . . . . . . . . . . Rewire . | . . . . . . . . . . . . . Trap . | . . . . . . . . . . . . . Miscellaneous . | . . . . . . . . . . . . . Route ------- -11/Scrapyard -10/Materials -10/Subcaves (discovered 3 exits: [*Mat x2] / *Rec) -9/Recycling -9/Scraptown -6/Factory (discovered 4 exits: Fac x2 / Low / DSF) -6/DSF -5/Factory (discovered 3 exits: [*Fac] / Upp x2) -4/Factory (discovered 2 exits: *Res x2) -3/Research (discovered 4 exits: *Res x2 / Arm / Qua) -2/Research -1/Access -1/Command History --------- Turn | Location | Event 12 | -11/Scrapyard | Discovered new exit (range 1) 81 | -11/Scrapyard | Entered Materials 314 | -10/Materials | Discovered new exit (range 3) 461 | -10/Materials | Entered Subcaves 689 | -10/Subcaves | Build established: Mutant 1391 | -10/Subcaves | Ambushed by swarm of Subdwellers 1400 | -10/Subcaves | Ambushed by Subdwellers from Twisted Machinery 2106 | -10/Subcaves | Discovered new exit (range 13) 2209 | -10/Subcaves | Discovered new exit (range 8) 2237 | -10/Subcaves | Learned location of Recycling (-9) 2449 | -10/Subcaves | Shifting Twisted Machinery released Sub. Machine Gun 2481 | -10/Subcaves | Shifting Twisted Machinery released Sub. Optics 2694 | -10/Subcaves | A swath of the cavern ceiling suddenly collapsed 3710 | -10/Subcaves | Discovered new exit (range 16) 3739 | -10/Subcaves | Entered Recycling 3992 | -9/Recycling | Build established: Scavenger-Mutant 4034 | -9/Recycling | Scanned before Scraplab entrance 4399 | -9/Recycling | Entered Scraplab 4413 | -9/Recycling | Discovered new exit (range 3) 4418 | -9/Recycling | Entered Scraptown 4550 | -9/Scraptown | Visited UFD Registry 4550 | -9/Scraptown | Registered with UFD as "Pyrostep" 4665 | -9/Scraptown | Visited Cyclists 4695 | -9/Scraptown | Entered Cyclist Reading Room 4769 | -9/Scraptown | Visited Junk Repository 4854 | -9/Scraptown | Scanned Subdweller tech in exchange for log data 4858 | -9/Scraptown | Learned Research trap positions 4862 | -9/Scraptown | Learned location of 1 exit from Lower Caves 4863 | -9/Scraptown | Learned location of Extension (-5) 4865 | -9/Scraptown | Learned Research emergency access door positions 4895 | -9/Scraptown | Discovered new exit (range 5) 6119 | -9/Scraptown | Delivered Scrap Shield to a Scientist 6173 | -9/Scraptown | Visited Derelict Rescue Squad 6182 | -9/Scraptown | Found DRS Beacon 6195 | -9/Scraptown | Visited Abandonware Association 6206 | -9/Scraptown | Learned abandonware demo "OVRCLOCK.EXE" 6211 | -9/Scraptown | Learned abandonware demo "TRNCOAT.EXE" 6254 | -9/Scraptown | Found DRS Beacon 6298 | -9/Scraptown | Visited Curators Association 6314 | -9/Scraptown | Build established: Mutant 6319 | -9/Scraptown | Visited Supply Room 6342 | -9/Scraptown | Visited Supply Room 6351 | -9/Scraptown | Visited Cartography Club 6389 | -9/Scraptown | Found Surveybot 17 Chip 6416 | -9/Scraptown | Learned location of Mines (-8) 6416 | -9/Scraptown | Learned location of Storage (-9) 6416 | -9/Scraptown | Learned location of Quarantine (-3) 6416 | -9/Scraptown | Learned 20 Factory zone layouts 6416 | -9/Scraptown | Learned 12 Research zone layouts 6416 | -9/Scraptown | Learned 16 Research zone layouts 6416 | -9/Scraptown | Learned 16 Upper Caves zone layouts 6416 | -9/Scraptown | Learned 8 Proximity Caves zone layouts 6416 | -9/Scraptown | Learned 4 Armory zone layouts 6416 | -9/Scraptown | Learned location of 3 exits from Lower Caves 6416 | -9/Scraptown | Learned location of 2 exits from Upper Caves 6449 | -9/Scraptown | Visited Science Testing Area 6462 | -9/Scraptown | Visited Scrap Suit Storage 6479 | -9/Scraptown | Visited LU-1G1's Boring Crew 6640 | -9/Scraptown | Visited Shadow of the Wyrm 6661 | -9/Scraptown | Visited SPCMW 6700 | -9/Scraptown | Visited Red Mages 7007 | -9/Scraptown | Visited IN-MT5's Study 7200 | -9/Scraptown | Entered Factory 7200 | -6/Factory | Evolved 8 slots: Power x1, Propulsion x4, Utility x3 7201 | -6/Factory | Identified exit to Factory 7201 | -6/Factory | Identified exit to Lower Caves 7205 | -6/Factory | Identified exit to DSF 7208 | -6/Factory | Entered DSF 7225 | -6/DSF | Discovered exit to Factory (range 16) 7240 | -6/DSF | Additional patrols routed to DSF 7333 | -6/DSF | Lost 3 parts (1n2w) 7367 | -6/DSF | Entered Factory 7367 | -5/Factory | Evolved 2 slots: Propulsion x1, Utility x1 7368 | -5/Factory | Identified exit to Upper Caves 7568 | -5/Factory | Lost 6 parts (4n2u) 7603 | -5/Factory | Core integrity fell below 50% 7644 | -5/Factory | Discovered new exit (range 15) 7651 | -5/Factory | Entered another Factory area 7651 | -4/Factory | Evolved 2 slots: Propulsion x1, Utility x1 7652 | -4/Factory | Identified exit to Research 7658 | -4/Factory | Lost 3 parts (1n2u) 7794 | -4/Factory | Core integrity fell below 50% 7816 | -4/Factory | Discovered exit to Research (range 15) 7820 | -4/Factory | Core integrity fell below 20% 7824 | -4/Factory | Entered Research 7824 | -3/Research | Evolved 2 slots: Propulsion x2 7825 | -3/Research | Identified exit to Armory 7826 | -3/Research | Identified exit to Quarantine 7826 | -3/Research | Identified exit to Research 7827 | -3/Research | Loaded intel: 98 trap records 7839 | -3/Research | Spotted B-86 Titan 7874 | -3/Research | Found Prototype Processor 7874 | -3/Research | Identified Spectral Analyzer 8156 | -3/Research | Discovered exit to Research (range 8) 8176 | -3/Research | Entered another Research area 8176 | -2/Research | Evolved 2 slots: Propulsion x1, Utility x1 8312 | -2/Research | Spotted B-90 Cyclops 8373 | -2/Research | Spotted B-90 Cyclops 8517 | -2/Research | Discovered new exit (range 12) 8540 | -2/Research | Entered Access 8540 | -1/Access | Evolved 2 slots: Propulsion x1, Utility x1 8571 | -1/Access | Lost 6 parts (1p3n1u1w) 8790 | -1/Access | Search patrols dispatched 8861 | -1/Access | System corruption reached 10% 8869 | -1/Access | Spotted B-99 Colossus 8881 | -1/Access | Spotted B-99 Colossus 8916 | -1/Access | Discovered new exit (range 8) 8919 | -1/Access | Entered Command 8924 | -1/Command | Lost 13 parts (1p11n1u) 8983 | -1/Command | Spotted B-99 Colossus 8996 | -1/Command | Core integrity fell below 50% 9015 | -1/Command | Spotted M Guard 9015 | -1/Command | Spotted Combat Programmer 9020 | -1/Command | Spotted M Guard 9020 | -1/Command | Spotted Combat Programmer 9026 | -1/Command | Core integrity fell below 20% 9027 | -1/Command | Destroyed by M Guard with Hellfire Missile Launcher Last Messages --------------- 08984_ Slug penetrates Wall. 08984_ Penetrated by Slug. 08988_ Terminal disabled. 08988_ Slug penetrates Terminal. 08988_ Penetrated by Slug. 08988_ Slug penetrates Terminal. 08988_ Penetrated by Slug. 08989_ B-99 Colossus activates siege mode. 08991_ Imp. Launcher Guidance Computer destroyed. 08991_ Penetrated by Slug. 08995_ Core Analyzer destroyed. 08995_ Slug penetrates Wall. 08995_ Penetrated by Slug. 08995_ Slug penetrates Wall. 08995_ Penetrated by Slug. 08995_ Slug penetrates Wall. 08996_ System corrupted: Energy discharge (-22). 09015_ System corrupted: Component data lost. 09024_ Penetrated by EMDS Slug. Map ----- +----------------------------------------------------+ | ????????????????????????????????????????????# + | | ????????????????????????????????????????????# %# | | ????????????????????????##??????????????????# + | | ??????????????????????? ??????????????????#### | | ??????????????????????? ?????????????????????# | | ??????????????????????# ?????????????????????# | | ??????????????????????# ?????????????????????# | | ??????????????????????# ?????????????????????# | | ??????????????????????# ?????????????????????### | | ??????????????????????# ???????????????????????? | | ??????????????????????# ???????????????????????? | | ??????????????????????# ???????????????????????? | | ??????????????????????# ???????????????????????? | | ??????????????????????# #??????????????????????? | | ??????????????????????# #??????????????????????? | | ??????????????????????# #??????????????????????? | | ??????????????????????# #??????????????????????? | | ??????????????????????# #??????????????????????? | | ??????????????????????# #??????????????????????? | | ??????????????????????# #??????????????????????? | | ??????????????????????# ##?#######?????????????? | | ?????????????????????## ### ##????????????? | | ????????????????????## #????????????? | | ????????????????????# ###?#####????? | | ????????????????????# #?# #????? | | ???????????????#+++## W@ W W ### ###### | | ???????????????# p + | | ???????????????# Y p + | | ???????????????# + | | ???????????????# Y + | | ???????????????# + | | ???????????????# pp ### ### W ### W ### W ###### | | ???????????????#####??# #?# #?# #?# #????? | | ??????????????????????#####?#####?#####?#####????? | | ?????????????????????????????????????????????????? | | ?????????????????????????????????????????????????? | | ?????????????????????????????????????????????????? | | ?????????????????????????????????????????????????? | | ?????????????????????????????????????????????????? | | ?????????????????????????????????????????????????? | | ?????????????????????????????????????????????????? | | ?????????????????????????????????????????????????? | | ?????????????????????????????????????????????????? | | ?????????????????????????????????????????????????? | | ?????????????????????????????????????????????????? | | ?????????????????????????????????????????????????? | | ?????????????????????????????????????????????????? | | ?????????????????????????????????????????????????? | | ?????????????????????????????????????????????????? | | ?????????????????????????????????????????????????? | +----------------------------------------------------+ Best States ------------- Heat Dissipation 52 Energy Generation 43 Energy Capacity 505 Matter Stores 300 Matter Capacity 300 Sight Range 24 Terrain Scan Range 16 Terrain Scan Density 10 ECM Strength 1 Cloak Strength 3 Evasion (%) 63 Targeting Accuracy 6 Launcher Accuracy 120 Core Analysis 6 Recoil Reduction 4 Offensive Hacking 14 Defensive Hacking 22 Item Schematics ----------------- Hacking Suite | -9/Recycling | Hacked Robot Schematics ------------------ None Fabricated ------------ Nothing Alien Tech Used ----------------- None Achievements -------------- Rockin' Loadout Challenges ------------ None Game ------ Seed AntimissileLayeredTerminator Manual? 0 Play Time 01:27:56 Cumulative 111.5 hours Start 2024.12.05 @ 19:33:25 End 2024.12.05 @ 21:44:14 Sessions 1 Manual Loads 0 Difficulty Rogue Special Mode None Game No. 153 Rogue 153 Adventurer 0 Explorer 0 Win Type - Total 0 Types 0/0/0/0/0/0/0/0/0 Lore% 60 Gallery% 49 Achievement% 35 Wizard Run 0 Options --------- Layout 1 ASCII 0 Keyboard 0 Movement Arrows Keybinds 0 Fullscreen 1 Font 24/Smallcaps Map View 50x40 Zoom Use 0% Tactical HUD 1 Map Filters NONE Filters NONE Steam 1 RUN: c70eb877-a650-4310-a8a4-6b46d531143d